[Event "GrandPrix_30.05"]
[Site "Chess.com"]
[Date "2020.05.30"]
[Round "7"]
[White "chess_big_master"]
[Black "tsvet2005"]
[Result "0-1"]
[WhiteElo "2062"]
[BlackElo "2264"]
[TimeControl "600+2"]
[EndTime "11:28:22 PDT"]
[Termination "tsvet2005 won on time"]

1. d4 {[%clk 0:10:01.9]} 1... d5 {[%clk 0:10:00.8]} 2. Nf3 {[%clk 0:10:02.5]}
2... Nf6 {[%clk 0:10:00.5]} 3. c4 {[%clk 0:10:03.7]} 3... e6 {[%clk 0:10:00.3]}
4. Nc3 {[%clk 0:10:04.7]} 4... c6 {[%clk 0:10:00.8]} 5. e3 {[%clk 0:10:04.5]}
5... Nbd7 {[%clk 0:10:01.7]} 6. Qc2 {[%clk 0:10:01.2]} 6... Bd6 {[%clk
0:10:01.8]} 7. e4 {[%clk 0:09:25]} 7... dxe4 {[%clk 0:09:52.1]} 8. Nxe4 {[%clk
0:09:25.7]} 8... Nxe4 {[%clk 0:09:41.3]} 9. Qxe4 {[%clk 0:09:26.4]} 9... c5
{[%clk 0:09:41.4]} 10. Bd3 {[%clk 0:08:52.4]} 10... cxd4 {[%clk 0:09:39.4]} 11.
Qxd4 {[%clk 0:08:41.3]} 11... Ne5 {[%clk 0:09:26.6]} 12. Bd2 {[%clk 0:06:54.5]}
12... Nxd3+ {[%clk 0:07:22.9]} 13. Qxd3 {[%clk 0:06:53.6]} 13... O-O {[%clk
0:07:07.5]} 14. Rd1 {[%clk 0:05:59.5]} 14... Be7 {[%clk 0:06:34.5]} 15. Qe4
{[%clk 0:05:08.5]} 15... Qb6 {[%clk 0:05:51]} 16. Bc3 {[%clk 0:04:54.7]} 16...
f6 {[%clk 0:05:39.7]} 17. O-O {[%clk 0:04:46.5]} 17... e5 {[%clk 0:05:37.7]} 18.
Rfe1 {[%clk 0:03:59.7]} 18... Be6 {[%clk 0:05:05.8]} 19. Nd4 {[%clk 0:03:40.1]}
19... Bf7 {[%clk 0:04:44.4]} 20. Nf5 {[%clk 0:02:51.8]} 20... Bc5 {[%clk
0:04:43.3]} 21. Qh4 {[%clk 0:01:49.4]} 21... Rfd8 {[%clk 0:04:11.7]} 22. b4
{[%clk 0:01:16.3]} 22... Bf8 {[%clk 0:03:01.8]} 23. c5 {[%clk 0:01:09.7]} 23...
Qe6 {[%clk 0:02:57]} 24. Qg4 {[%clk 0:00:24.6]} 24... h5 {[%clk 0:02:01]} 25.
Qf3 {[%clk 0:00:18.5]} 25... e4 {[%clk 0:01:45.6]} 26. Qh3 {[%clk 0:00:10.3]}
26... g6 {[%clk 0:01:30.2]} 27. Nd6 {[%clk 0:00:11.2]} 27... f5 {[%clk
0:00:30.6]} 28. Nxb7 {[%clk 0:00:10.3]} 28... Rxd1 {[%clk 0:00:30.8]} 29. Rxd1
{[%clk 0:00:10.9]} 29... Qxa2 {[%clk 0:00:32.3]} 30. Qe3 {[%clk 0:00:08.6]}
30... Qc4 {[%clk 0:00:26.6]} 31. Nd6 {[%clk 0:00:06.1]} 31... Bxd6 {[%clk
0:00:27.7]} 32. cxd6 {[%clk 0:00:06.7]} 32... Rd8 {[%clk 0:00:20.3]} 33. Bf6
{[%clk 0:00:06.3]} 33... Qc2 {[%clk 0:00:08.5]} 34. Rc1 {[%clk 0:00:04.3]} 34...
Rxd6 {[%clk 0:00:10]} 35. Ba1 {[%clk 0:00:02.3]} 35... Rd1+ {[%clk 0:00:10.4]}
0-1

[Event "GrandPrix_30.05"]
[Site "Chess.com"]
[Date "2020.05.30"]
[Round "7"]
[White "Forking_U"]
[Black "ehrenfeld"]
[Result "0-1"]
[WhiteElo "2093"]
[BlackElo "2045"]
[TimeControl "600+2"]
[EndTime "11:28:22 PDT"]
[Termination "ehrenfeld won on time"]

1. e4 {[%clk 0:10:01.9]} 1... e5 {[%clk 0:10:00]} 2. Nf3 {[%clk 0:10:02.6]} 2...
Nc6 {[%clk 0:09:59.3]} 3. d4 {[%clk 0:10:04.2]} 3... exd4 {[%clk 0:09:59.8]} 4.
Nxd4 {[%clk 0:10:06.1]} 4... Bc5 {[%clk 0:09:59.7]} 5. Nxc6 {[%clk 0:10:07.1]}
5... bxc6 {[%clk 0:09:59.4]} 6. Bd3 {[%clk 0:09:36.8]} 6... Qh4 {[%clk
0:09:49.8]} 7. O-O {[%clk 0:09:37.4]} 7... Nf6 {[%clk 0:09:48.3]} 8. Qf3 {[%clk
0:08:21.6]} 8... d6 {[%clk 0:07:28.2]} 9. Nc3 {[%clk 0:07:21.1]} 9... O-O {[%clk
0:07:22.4]} 10. Bf4 {[%clk 0:05:26]} 10... Nh5 {[%clk 0:06:54.7]} 11. g3 {[%clk
0:04:42.2]} 11... Qh3 {[%clk 0:06:26.9]} 12. Bd2 {[%clk 0:04:38.6]} 12... Nf6
{[%clk 0:06:14.1]} 13. Qg2 {[%clk 0:03:32.4]} 13... Qh5 {[%clk 0:05:20.6]} 14.
Be2 {[%clk 0:03:33.5]} 14... Bg4 {[%clk 0:05:17.2]} 15. Bxg4 {[%clk 0:03:27.7]}
15... Nxg4 {[%clk 0:05:15.8]} 16. h3 {[%clk 0:01:18.2]} 16... Ne5 {[%clk
0:03:39.9]} 17. Bf4 {[%clk 0:01:10.2]} 17... Ng6 {[%clk 0:02:50]} 18. Bd2 {[%clk
0:00:41.2]} 18... f5 {[%clk 0:02:38.2]} 19. exf5 {[%clk 0:00:28.8]} 19... Qxf5
{[%clk 0:02:38.7]} 20. Ne4 {[%clk 0:00:26.7]} 20... Bb6 {[%clk 0:02:37.1]} 21.
c4 {[%clk 0:00:12.1]} 21... d5 {[%clk 0:02:35.8]} 22. cxd5 {[%clk 0:00:12]}
22... cxd5 {[%clk 0:02:36.1]} 23. Nc3 {[%clk 0:00:08.8]} 23... Rad8 {[%clk
0:02:29.9]} 24. Rae1 {[%clk 0:00:05.9]} 24... Ne5 {[%clk 0:02:11.9]} 25. Kh1
{[%clk 0:00:04.4]} 25... Nf3 {[%clk 0:02:10.6]} 26. Rd1 {[%clk 0:00:05.3]} 26...
Rde8 {[%clk 0:01:13.8]} 27. Bf4 {[%clk 0:00:05.3]} 27... c6 {[%clk 0:00:28.1]}
28. Qxf3 {[%clk 0:00:05.4]} 28... g5 {[%clk 0:00:28.8]} 29. Qg4 {[%clk
0:00:04.5]} 29... Qxg4 {[%clk 0:00:29]} 30. hxg4 {[%clk 0:00:05.5]} 30... gxf4
{[%clk 0:00:30.6]} 31. gxf4 {[%clk 0:00:04.4]} 31... Rxf4 {[%clk 0:00:31.4]} 32.
f3 {[%clk 0:00:04.6]} 32... Re3 {[%clk 0:00:27.8]} 33. Kg2 {[%clk 0:00:05.3]}
33... d4 {[%clk 0:00:27]} 34. Ne4 {[%clk 0:00:04.3]} 34... c5 {[%clk 0:00:20.4]}
35. Rf2 {[%clk 0:00:03.5]} 35... c4 {[%clk 0:00:14.9]} 36. Kg3 {[%clk
0:00:03.6]} 36... Rfxe4 {[%clk 0:00:15.1]} 37. Kg2 {[%clk 0:00:02]} 37... Re7
{[%clk 0:00:14.9]} 0-1

[Event "GrandPrix_30.05"]
[Site "Chess.com"]
[Date "2020.05.30"]
[Round "7"]
[White "MaxVavulin"]
[Black "GM_dmitrij"]
[Result "1/2-1/2"]
[WhiteElo "2290"]
[BlackElo "2452"]
[TimeControl "600+2"]
[EndTime "11:28:29 PDT"]
[Termination "Game drawn by repetition"]

1. e4 {[%clk 0:10:01.9]} 1... e5 {[%clk 0:10:00.6]} 2. Nf3 {[%clk 0:10:02.5]}
2... Nc6 {[%clk 0:10:02]} 3. Bb5 {[%clk 0:10:03.5]} 3... a6 {[%clk 0:10:01.6]}
4. Ba4 {[%clk 0:10:04.4]} 4... Nf6 {[%clk 0:10:02]} 5. O-O {[%clk 0:10:03.2]}
5... Bc5 {[%clk 0:10:02.4]} 6. c3 {[%clk 0:09:12.4]} 6... b5 {[%clk 0:10:02.2]}
7. Bb3 {[%clk 0:09:13.1]} 7... d6 {[%clk 0:10:03.2]} 8. d4 {[%clk 0:08:40.6]}
8... Bb6 {[%clk 0:10:03.9]} 9. a4 {[%clk 0:08:38.9]} 9... Bg4 {[%clk 0:10:03.9]}
10. axb5 {[%clk 0:06:54.3]} 10... axb5 {[%clk 0:10:04]} 11. Rxa8 {[%clk
0:06:55.8]} 11... Qxa8 {[%clk 0:10:05.7]} 12. Na3 {[%clk 0:06:07.6]} 12... exd4
{[%clk 0:09:00.7]} 13. Nxb5 {[%clk 0:06:05.7]} 13... dxc3 {[%clk 0:08:59.2]} 14.
Nxc3 {[%clk 0:06:02.9]} 14... Nd4 {[%clk 0:07:32.4]} 15. Ba4+ {[%clk 0:05:49.5]}
15... Kf8 {[%clk 0:06:22.2]} 16. Be3 {[%clk 0:05:41.5]} 16... Nxf3+ {[%clk
0:05:29.6]} 17. gxf3 {[%clk 0:05:41.9]} 17... Bh3 {[%clk 0:05:31.2]} 18. Re1
{[%clk 0:04:22.6]} 18... Bxe3 {[%clk 0:05:30.3]} 19. Rxe3 {[%clk 0:04:23.7]}
19... Be6 {[%clk 0:04:27.4]} 20. f4 {[%clk 0:04:21.2]} 20... Qa7 {[%clk
0:02:43.5]} 21. e5 {[%clk 0:03:29.8]} 21... Ng4 {[%clk 0:02:40.7]} 22. Re2
{[%clk 0:03:01.7]} 22... g6 {[%clk 0:02:19.4]} 23. exd6 {[%clk 0:02:41.8]} 23...
cxd6 {[%clk 0:02:14.7]} 24. Qxd6+ {[%clk 0:01:42.9]} 24... Kg7 {[%clk
0:02:15.5]} 25. h3 {[%clk 0:01:44.2]} 25... Nf6 {[%clk 0:02:04.7]} 26. Qe5
{[%clk 0:01:33.6]} 26... Qb8 {[%clk 0:02:04.7]} 27. Kh2 {[%clk 0:01:13.1]} 27...
Rd8 {[%clk 0:01:54.8]} 28. Bc6 {[%clk 0:01:08.5]} 28... Bc4 {[%clk 0:01:26.9]}
29. Rc2 {[%clk 0:00:48.3]} 29... Bb3 {[%clk 0:01:26.8]} 30. Rc1 {[%clk
0:00:36.8]} 30... Be6 {[%clk 0:01:26.8]} 31. Ne4 {[%clk 0:00:20.3]} 31... Qxe5
{[%clk 0:01:01.5]} 32. fxe5 {[%clk 0:00:21.7]} 32... Nxe4 {[%clk 0:01:00]} 33.
Bxe4 {[%clk 0:00:23.3]} 33... Rb8 {[%clk 0:01:01.8]} 34. Rc2 {[%clk 0:00:20.7]}
34... Rb5 {[%clk 0:01:02.6]} 35. f4 {[%clk 0:00:19.3]} 35... Rb4 {[%clk
0:01:03.7]} 36. Re2 {[%clk 0:00:18.4]} 36... Rb3 {[%clk 0:01:04.5]} 37. Bg2
{[%clk 0:00:16.9]} 37... Rb4 {[%clk 0:01:00.8]} 38. Rf2 {[%clk 0:00:12.4]} 38...
h5 {[%clk 0:01:01.5]} 39. h4 {[%clk 0:00:10.4]} 39... f6 {[%clk 0:01:01.3]} 40.
exf6+ {[%clk 0:00:09.8]} 40... Kxf6 {[%clk 0:01:03.2]} 41. Kg3 {[%clk
0:00:10.9]} 41... Rb3+ {[%clk 0:01:03.5]} 42. Kh2 {[%clk 0:00:09.7]} 42... Bf5
{[%clk 0:01:04.6]} 43. Rd2 {[%clk 0:00:08.4]} 43... Rb4 {[%clk 0:01:05.6]} 44.
Kg3 {[%clk 0:00:09.1]} 44... Rb3+ {[%clk 0:01:06.9]} 45. Kf2 {[%clk 0:00:10.6]}
45... Rb4 {[%clk 0:01:07.1]} 46. Kf3 {[%clk 0:00:11]} 46... Rb3+ {[%clk
0:01:04.9]} 47. Kf2 {[%clk 0:00:12.2]} 47... Rb4 {[%clk 0:01:06.5]} 48. Ke3
{[%clk 0:00:13.5]} 48... Rb3+ {[%clk 0:01:03.7]} 49. Kd4 {[%clk 0:00:12.9]}
49... Rb4+ {[%clk 0:01:05.1]} 50. Ke3 {[%clk 0:00:08.5]} 50... Rb3+ {[%clk
0:01:05.1]} 51. Kd4 {[%clk 0:00:08.3]} 51... Rb4+ {[%clk 0:01:05.5]} 52. Ke3
{[%clk 0:00:08.2]} 1/2-1/2

[Event "GrandPrix_30.05"]
[Site "Chess.com"]
[Date "2020.05.30"]
[Round "7"]
[White "PeshkaTheGreat"]
[Black "Olga_Girya"]
[Result "1/2-1/2"]
[WhiteElo "2140"]
[BlackElo "2207"]
[TimeControl "600+2"]
[EndTime "11:28:33 PDT"]
[Termination "Game drawn by agreement"]

1. e4 {[%clk 0:10:01.9]} 1... c6 {[%clk 0:09:59.5]} 2. d4 {[%clk 0:10:02.2]}
2... d5 {[%clk 0:10:00.7]} 3. Nc3 {[%clk 0:10:02.5]} 3... dxe4 {[%clk
0:10:01.5]} 4. Nxe4 {[%clk 0:10:03]} 4... Nf6 {[%clk 0:10:03.1]} 5. Nxf6+ {[%clk
0:10:03.8]} 5... exf6 {[%clk 0:10:04.6]} 6. c3 {[%clk 0:10:05.1]} 6... Bd6
{[%clk 0:10:06.1]} 7. Bd3 {[%clk 0:10:05.5]} 7... O-O {[%clk 0:10:07.4]} 8. Qc2
{[%clk 0:10:06.6]} 8... Re8+ {[%clk 0:10:08.9]} 9. Ne2 {[%clk 0:10:07.9]} 9...
h5 {[%clk 0:10:10.3]} 10. O-O {[%clk 0:10:08.6]} 10... h4 {[%clk 0:10:08.6]} 11.
h3 {[%clk 0:10:10.1]} 11... Nd7 {[%clk 0:10:09.1]} 12. Be3 {[%clk 0:10:11.1]}
12... Nf8 {[%clk 0:10:09.3]} 13. Qd2 {[%clk 0:10:10.4]} 13... Ng6 {[%clk
0:09:06.2]} 14. Nf4 {[%clk 0:09:49.8]} 14... Nxf4 {[%clk 0:08:18.4]} 15. Bxf4
{[%clk 0:09:49.8]} 15... Be6 {[%clk 0:08:01.3]} 16. c4 {[%clk 0:09:03.8]} 16...
Bxf4 {[%clk 0:05:32.9]} 17. Qxf4 {[%clk 0:09:03.1]} 17... g5 {[%clk 0:05:33.9]}
18. Qd2 {[%clk 0:05:52.1]} 18... f5 {[%clk 0:05:08]} 19. d5 {[%clk 0:05:23.9]}
19... cxd5 {[%clk 0:05:08]} 20. cxd5 {[%clk 0:05:25.8]} 20... Bxd5 {[%clk
0:04:46.7]} 21. Bxf5 {[%clk 0:05:26.1]} 21... Bc4 {[%clk 0:04:25.1]} 22. Rfd1
{[%clk 0:05:11.5]} 22... Qxd2 {[%clk 0:04:25.4]} 23. Rxd2 {[%clk 0:05:12.5]}
23... Rad8 {[%clk 0:04:27.3]} 24. Rxd8 {[%clk 0:04:50.5]} 24... Rxd8 {[%clk
0:04:27.8]} 25. b3 {[%clk 0:04:52.1]} 25... Be2 {[%clk 0:03:38.4]} 26. Rc1
{[%clk 0:04:38.1]} 26... Rd1+ {[%clk 0:02:56.3]} 27. Rxd1 {[%clk 0:04:38.8]}
27... Bxd1 {[%clk 0:02:57.5]} 28. Kf1 {[%clk 0:04:39.6]} 28... Bh5 {[%clk
0:02:46.8]} 29. Ke1 {[%clk 0:04:32.7]} 29... Kg7 {[%clk 0:02:41.1]} 30. Kd2
{[%clk 0:04:33.2]} 30... Kf6 {[%clk 0:02:41.3]} 31. Bc8 {[%clk 0:04:25.7]} 31...
b6 {[%clk 0:02:42.5]} 32. Ke3 {[%clk 0:04:20.4]} 32... Ke5 {[%clk 0:02:43.8]}
33. b4 {[%clk 0:03:31.3]} 33... f5 {[%clk 0:02:31.8]} 34. g3 {[%clk 0:03:15.3]}
34... f4+ {[%clk 0:01:42.9]} 35. gxf4+ {[%clk 0:03:07.6]} 35... gxf4+ {[%clk
0:01:43.9]} 36. Kd3 {[%clk 0:03:08.7]} 36... Bg6+ {[%clk 0:01:44.3]} 37. Kc4
{[%clk 0:02:59.3]} 37... Bf7+ {[%clk 0:01:37.3]} 38. Kb5 {[%clk 0:03:00.4]}
38... Bxa2 {[%clk 0:01:35.8]} 39. Ka6 {[%clk 0:03:01.3]} 39... Bc4+ {[%clk
0:01:13.7]} 40. Kxa7 {[%clk 0:03:00.6]} 40... b5 {[%clk 0:01:13.9]} 41. Kb6
{[%clk 0:02:56.6]} 41... Ke4 {[%clk 0:01:05.8]} 42. Bg4 {[%clk 0:02:30.4]} 42...
Kd3 {[%clk 0:00:31.9]} 43. Kc5 {[%clk 0:02:29.5]} 43... Ke4 {[%clk 0:00:14.2]}
44. Bh5 {[%clk 0:01:50.9]} 44... f3 {[%clk 0:00:14.9]} 45. Bg6+ {[%clk
0:01:36.1]} 45... Ke5 {[%clk 0:00:14.1]} 46. Be8 {[%clk 0:01:13.7]} 46... Bf1
{[%clk 0:00:13.8]} 47. Bd7 {[%clk 0:01:07.5]} 47... Ke4 {[%clk 0:00:15.1]} 48.
Bg4 {[%clk 0:00:57.3]} 48... Bc4 {[%clk 0:00:13.8]} 1/2-1/2

[Event "GrandPrix_30.05"]
[Site "Chess.com"]
[Date "2020.05.30"]
[Round "7"]
[White "Shahinyan_ChessMood"]
[Black "Paulz64"]
[Result "1/2-1/2"]
[WhiteElo "2375"]
[BlackElo "2234"]
[TimeControl "600+2"]
[EndTime "11:28:40 PDT"]
[Termination "Game drawn by agreement"]

1. e4 {[%clk 0:10:01.9]} 1... c5 {[%clk 0:10:00.5]} 2. Nc3 {[%clk 0:09:59.2]}
2... e6 {[%clk 0:10:01]} 3. g3 {[%clk 0:10:01.1]} 3... d5 {[%clk 0:09:55]} 4.
exd5 {[%clk 0:10:03]} 4... exd5 {[%clk 0:09:56.1]} 5. d3 {[%clk 0:10:04.7]} 5...
Nf6 {[%clk 0:09:57.1]} 6. Bg2 {[%clk 0:10:05.5]} 6... Be7 {[%clk 0:09:17.6]} 7.
Bg5 {[%clk 0:09:42.4]} 7... d4 {[%clk 0:09:12.2]} 8. Bxf6 {[%clk 0:09:41.7]}
8... Bxf6 {[%clk 0:09:12.8]} 9. Nd5 {[%clk 0:09:42.4]} 9... O-O {[%clk
0:09:03.4]} 10. Ne2 {[%clk 0:09:41]} 10... Nc6 {[%clk 0:09:04.4]} 11. O-O {[%clk
0:09:35.3]} 11... Be6 {[%clk 0:09:04.7]} 12. Nef4 {[%clk 0:09:34.3]} 12... Bxd5
{[%clk 0:09:05.5]} 13. Nxd5 {[%clk 0:09:34.2]} 13... Rc8 {[%clk 0:08:45.7]} 14.
Re1 {[%clk 0:09:30.2]} 14... Qd6 {[%clk 0:08:24]} 15. Qh5 {[%clk 0:09:25.3]}
15... b6 {[%clk 0:08:08.5]} 16. Re2 {[%clk 0:08:46.1]} 16... g6 {[%clk
0:07:56.7]} 17. Qf3 {[%clk 0:08:39.5]} 17... Bg7 {[%clk 0:07:56.3]} 18. Rae1
{[%clk 0:08:40.8]} 18... Rcd8 {[%clk 0:07:25.7]} 19. h4 {[%clk 0:08:11.9]} 19...
Nb4 {[%clk 0:06:33.2]} 20. Nxb4 {[%clk 0:08:02]} 20... cxb4 {[%clk 0:06:32.2]}
21. h5 {[%clk 0:08:03.9]} 21... a5 {[%clk 0:06:07]} 22. Re7 {[%clk 0:07:48.2]}
22... Rc8 {[%clk 0:04:37.7]} 23. hxg6 {[%clk 0:07:25]} 23... hxg6 {[%clk
0:04:36.5]} 24. Qb7 {[%clk 0:06:20.7]} 24... Rxc2 {[%clk 0:03:51]} 25. R1e6
{[%clk 0:06:10.1]} 25... Rc1+ {[%clk 0:03:40.3]} 26. Bf1 {[%clk 0:05:37.5]}
26... Qc5 {[%clk 0:03:35.5]} 27. Rxg6 {[%clk 0:05:31.8]} 27... Qf5 {[%clk
0:03:31.3]} 28. Rc6 {[%clk 0:04:57.8]} 28... Rd1 {[%clk 0:03:19]} 29. Rcc7
{[%clk 0:03:19]} 29... Qxd3 {[%clk 0:03:09.3]} 30. Qg2 {[%clk 0:03:20.5]} 30...
Qf5 {[%clk 0:02:56.7]} 31. g4 {[%clk 0:03:17]} 31... Qf4 {[%clk 0:02:53.4]} 32.
g5 {[%clk 0:03:12.6]} 32... Be5 {[%clk 0:02:46]} 33. Rc6 {[%clk 0:02:35.5]}
33... d3 {[%clk 0:01:38.8]} 34. g6 {[%clk 0:02:16.2]} 34... Qh2+ {[%clk
0:01:31.2]} 35. Qxh2 {[%clk 0:02:17.1]} 35... Bxh2+ {[%clk 0:01:31.9]} 36. Kg2
{[%clk 0:02:18.6]} 36... d2 {[%clk 0:01:31]} 37. gxf7+ {[%clk 0:01:39.1]} 37...
Kg7 {[%clk 0:01:29.6]} 38. Be2 {[%clk 0:01:02.4]} 38... Re1 {[%clk 0:01:23]} 39.
Kxh2 {[%clk 0:00:19.3]} 39... Rxe2 {[%clk 0:01:09.2]} 40. Rd7 {[%clk 0:00:20.6]}
40... Rxf7 {[%clk 0:00:57.9]} 41. Rcd6 {[%clk 0:00:13.7]} 41... Rxf2+ {[%clk
0:00:55.6]} 42. Kg3 {[%clk 0:00:14.7]} 42... Rf3+ {[%clk 0:00:52.9]} 43. Kg2
{[%clk 0:00:15.5]} 43... Rf2+ {[%clk 0:00:51.4]} 44. Kg3 {[%clk 0:00:16]} 44...
Rf3+ {[%clk 0:00:49.6]} 45. Kg2 {[%clk 0:00:16.7]} 1/2-1/2

[Event "GrandPrix_30.05"]
[Site "Chess.com"]
[Date "2020.05.30"]
[Round "7"]
[White "gygygygygyggygygygy"]
[Black "madamDD"]
[Result "1-0"]
[WhiteElo "2081"]
[BlackElo "2251"]
[TimeControl "600+2"]
[EndTime "11:28:40 PDT"]
[Termination "gygygygygyggygygygy won by resignation"]

1. e4 {[%clk 0:10:01.9]} 1... Nf6 {[%clk 0:09:58.7]} 2. Nc3 {[%clk 0:10:01.6]}
2... d6 {[%clk 0:09:37.6]} 3. g3 {[%clk 0:09:54.9]} 3... c5 {[%clk 0:09:27.8]}
4. Bg2 {[%clk 0:09:55.1]} 4... Nc6 {[%clk 0:09:25.4]} 5. Nge2 {[%clk 0:09:51.9]}
5... g6 {[%clk 0:09:15.6]} 6. d4 {[%clk 0:09:41.5]} 6... cxd4 {[%clk 0:09:01.5]}
7. Nxd4 {[%clk 0:09:39.7]} 7... Bd7 {[%clk 0:08:48.5]} 8. Nde2 {[%clk 0:09:37]}
8... Bg7 {[%clk 0:08:46]} 9. O-O {[%clk 0:09:36.9]} 9... O-O {[%clk 0:08:45.1]}
10. Nd5 {[%clk 0:09:34.5]} 10... Nxd5 {[%clk 0:08:37.7]} 11. exd5 {[%clk
0:09:30.2]} 11... Ne5 {[%clk 0:08:38.1]} 12. Rb1 {[%clk 0:08:21.6]} 12... Qc8
{[%clk 0:08:13.8]} 13. b3 {[%clk 0:08:05.8]} 13... Bg4 {[%clk 0:07:29.5]} 14. f3
{[%clk 0:07:49.6]} 14... Bh3 {[%clk 0:07:14.2]} 15. Be3 {[%clk 0:07:28]} 15...
Bxg2 {[%clk 0:07:05.7]} 16. Kxg2 {[%clk 0:07:27.9]} 16... b5 {[%clk 0:06:56.4]}
17. h3 {[%clk 0:07:08.9]} 17... a5 {[%clk 0:06:31.3]} 18. Rc1 {[%clk 0:06:33.9]}
18... Qb7 {[%clk 0:06:21.3]} 19. Qd2 {[%clk 0:06:02]} 19... Rfc8 {[%clk
0:06:15.2]} 20. Rfd1 {[%clk 0:05:56]} 20... a4 {[%clk 0:05:08.9]} 21. Nf4 {[%clk
0:05:36.7]} 21... axb3 {[%clk 0:04:40.3]} 22. cxb3 {[%clk 0:05:35.3]} 22... b4
{[%clk 0:04:32]} 23. Rxc8+ {[%clk 0:05:14.6]} 23... Rxc8 {[%clk 0:04:31.7]} 24.
Rc1 {[%clk 0:05:14.5]} 24... Rxc1 {[%clk 0:04:20.8]} 25. Qxc1 {[%clk 0:05:04.5]}
25... g5 {[%clk 0:04:17.5]} 26. Ne2 {[%clk 0:04:37.5]} 26... Qxd5 {[%clk
0:04:14.8]} 27. Qc8+ {[%clk 0:04:36.5]} 27... Bf8 {[%clk 0:04:15.1]} 28. Nd4
{[%clk 0:04:36]} 28... h6 {[%clk 0:03:59.3]} 29. h4 {[%clk 0:04:31.3]} 29... g4
{[%clk 0:02:49.6]} 30. Bxh6 {[%clk 0:04:12.3]} 30... gxf3+ {[%clk 0:02:48.1]}
31. Kh3 {[%clk 0:03:32]} 31... Nd7 {[%clk 0:02:19.9]} 32. Bxf8 {[%clk
0:03:06.2]} 32... f2 {[%clk 0:01:56.4]} 33. Bh6+ {[%clk 0:02:12.8]} 33... Kh7
{[%clk 0:01:56.3]} 34. Qc2+ {[%clk 0:02:13.5]} 34... Kxh6 {[%clk 0:01:56.5]} 35.
Qd2+ {[%clk 0:01:45.9]} 35... Kg6 {[%clk 0:01:28.4]} 36. Qxf2 {[%clk 0:01:34.6]}
36... Qh1+ {[%clk 0:01:14.3]} 37. Qh2 {[%clk 0:01:33.4]} 37... Qe4 {[%clk
0:00:57.8]} 38. Qc2 {[%clk 0:01:31.7]} 38... f5 {[%clk 0:00:54.5]} 39. Qxe4
{[%clk 0:01:17.7]} 39... fxe4 {[%clk 0:00:56.4]} 40. Nc6 {[%clk 0:01:13.2]}
40... e5 {[%clk 0:00:30.5]} 41. Nxb4 {[%clk 0:01:11.5]} 41... e3 {[%clk
0:00:20.4]} 42. Kg2 {[%clk 0:01:09.2]} 42... Nf6 {[%clk 0:00:19.3]} 43. Kf3
{[%clk 0:01:05.8]} 43... d5 {[%clk 0:00:20.3]} 44. Kxe3 {[%clk 0:01:04.3]} 44...
d4+ {[%clk 0:00:15.2]} 45. Kd3 {[%clk 0:01:04.5]} 45... Kf5 {[%clk 0:00:16.1]}
46. Nc6 {[%clk 0:01:04.3]} 46... Ng4 {[%clk 0:00:10.1]} 47. Nxd4+ {[%clk
0:01:03.4]} 47... exd4 {[%clk 0:00:10.7]} 48. Kxd4 {[%clk 0:01:04.9]} 48... Nf6
{[%clk 0:00:09.9]} 49. a4 {[%clk 0:01:03.6]} 49... Kg4 {[%clk 0:00:10.2]} 50. a5
{[%clk 0:01:03.5]} 50... Ne8 {[%clk 0:00:10.5]} 51. Kc5 {[%clk 0:00:59]} 51...
Kxg3 {[%clk 0:00:10.1]} 52. Kc6 {[%clk 0:00:54.7]} 1-0

[Event "GrandPrix_30.05"]
[Site "Chess.com"]
[Date "2020.05.30"]
[Round "7"]
[White "KJakubowski"]
[Black "VolodymyrMolyboha"]
[Result "0-1"]
[WhiteElo "2298"]
[BlackElo "2243"]
[TimeControl "600+2"]
[EndTime "11:28:42 PDT"]
[Termination "VolodymyrMolyboha won on time"]

1. e4 {[%clk 0:10:01.9]} 1... g6 {[%clk 0:09:34.3]} 2. d4 {[%clk 0:09:59.9]}
2... Bg7 {[%clk 0:09:31.9]} 3. Nc3 {[%clk 0:09:54.2]} 3... d6 {[%clk 0:09:31.3]}
4. Be3 {[%clk 0:09:39.8]} 4... a6 {[%clk 0:09:30]} 5. Qd2 {[%clk 0:09:14.4]}
5... b5 {[%clk 0:09:29.2]} 6. O-O-O {[%clk 0:09:14.7]} 6... Bb7 {[%clk
0:09:29.8]} 7. f3 {[%clk 0:09:15.3]} 7... Nd7 {[%clk 0:09:29.9]} 8. g4 {[%clk
0:08:56.5]} 8... h5 {[%clk 0:09:28.9]} 9. gxh5 {[%clk 0:08:44.2]} 9... Rxh5
{[%clk 0:09:29.1]} 10. Nce2 {[%clk 0:08:36.4]} 10... c5 {[%clk 0:09:08.3]} 11.
Ng3 {[%clk 0:08:32.1]} 11... Rh4 {[%clk 0:08:44.4]} 12. c3 {[%clk 0:06:48.8]}
12... Rc8 {[%clk 0:08:28.7]} 13. Kb1 {[%clk 0:06:47.4]} 13... cxd4 {[%clk
0:07:16.9]} 14. cxd4 {[%clk 0:06:43.9]} 14... Nb6 {[%clk 0:07:17.4]} 15. b3
{[%clk 0:06:23.5]} 15... Bh6 {[%clk 0:05:29.3]} 16. Bxh6 {[%clk 0:05:50.7]}
16... Rxh6 {[%clk 0:05:29.1]} 17. h4 {[%clk 0:05:44.3]} 17... e6 {[%clk
0:05:16.7]} 18. h5 {[%clk 0:05:28.4]} 18... Qf6 {[%clk 0:04:45.3]} 19. Bh3
{[%clk 0:04:17.7]} 19... gxh5 {[%clk 0:04:32.7]} 20. d5 {[%clk 0:04:17.3]} 20...
h4 {[%clk 0:04:02.4]} 21. dxe6 {[%clk 0:04:06.6]} 21... hxg3 {[%clk 0:03:15]}
22. Qxd6 {[%clk 0:04:05.4]} 22... Qc3 {[%clk 0:02:00.2]} 23. Ne2 {[%clk
0:03:36.7]} 23... Qc2+ {[%clk 0:02:00.7]} 24. Ka1 {[%clk 0:03:37]} 24... Qxe2
{[%clk 0:01:21.5]} 25. Qxb6 {[%clk 0:03:16.8]} 25... Qc2 {[%clk 0:00:47.5]} 26.
exf7+ {[%clk 0:02:59.9]} 26... Kxf7 {[%clk 0:00:47.9]} 27. Qxb7+ {[%clk
0:02:59.4]} 27... Ne7 {[%clk 0:00:36.9]} 28. Bxc8 {[%clk 0:02:41.3]} 28... Rxh1
{[%clk 0:00:34]} 29. Rxh1 {[%clk 0:02:42]} 29... Qc3+ {[%clk 0:00:19.1]} 30. Kb1
{[%clk 0:02:42.3]} 30... g2 {[%clk 0:00:14.8]} 31. Be6+ {[%clk 0:02:16.1]} 31...
Kxe6 {[%clk 0:00:13.3]} 32. Qb6+ {[%clk 0:02:12.2]} 32... Kf7 {[%clk 0:00:09.2]}
33. Rc1 {[%clk 0:00:30]} 33... Qxf3 {[%clk 0:00:07.2]} 34. Qd4 {[%clk
0:00:26.6]} 34... Qg4 {[%clk 0:00:03.7]} 35. Qf2+ {[%clk 0:00:18.6]} 35... Kg7
{[%clk 0:00:04]} 36. Kb2 {[%clk 0:00:12.5]} 36... Ng6 {[%clk 0:00:03.5]} 37. e5
{[%clk 0:00:05.8]} 37... Nxe5 {[%clk 0:00:02.5]} 38. Rg1 {[%clk 0:00:02.4]}
38... Nd3+ {[%clk 0:00:02.7]} 0-1